bitfinex/quotes_ETHUSD_20241013
["timestamp","ask_amount","ask_price","bid_price","bid_amount"]
[1728818497140,0.24959859,2468.3,2467.7,0.8147]
[1728818497652,0.24959859,2468.3,2467.9,0.8147]
[1728818497852,0.78,2468.9,2468.0,0.8147]
[1728818498065,0.78,2468.9,2468.1,0.8147]
[1728818498214,0.23288913,2468.8,2468.2,0.8147]
[1728818498414,0.78,2468.9,2468.2,0.8147]
[1728818499631,0.23292219,2468.8,2468.2,0.8147]
[1728818500260,0.78,2468.9,2468.2,0.8147]
[1728818500616,0.23292753,2468.8,2468.2,0.8147]
[1728818501153,0.78,2468.9,2468.2,0.8147]
[1728818501312,0.23292753,2468.8,2468.2,0.8147]
[1728818501512,0.78,2468.9,2468.2,0.8147]
[1728818501712,0.23292753,2468.8,2468.2,0.8147]
[1728818501965,0.78,2468.9,2468.2,0.8147]
[1728818502115,0.23292753,2468.8,2468.2,0.8147]
[1728818502317,0.78,2468.9,2468.2,0.8147]
[1728818502579,0.23292753,2468.8,2468.2,0.8147]
[1728818502787,0.78,2468.9,2468.2,0.8147]
[1728818503084,0.23292753,2468.8,2468.2,0.8147]
[1728818503444,0.23292753,2468.8,2468.2,1.2812528]
[1728818503765,0.78,2468.7,2468.0,0.8147]
[1728818503964,0.23298921,2468.6,2468.0,0.8147]
[1728818504278,0.78,2468.7,2468.0,0.8147]
[1728818504647,0.23299811,2468.6,2468.0,0.8147]
[1728818505154,0.23299359,2468.5,2468.0,0.8147]
[1728818505351,0.78,2468.7,2468.0,0.8147]
[1728818505649,0.23299811,2468.6,2468.0,0.8147]
[1728818508504,0.7526,2468.5,2467.8,0.8085]
[1728818508658,0.7526,2468.5,2467.8,1.40203971]
[1728818508858,0.98559359,2468.5,2467.8,1.40203971]
[1728818514086,0.98559359,2468.5,2467.8,2.25286771]
[1728818515409,0.98559359,2468.5,2467.8,5.25286771]
[1728818517381,0.98559359,2468.5,2467.8,2.25286771]
[1728818517799,0.98559359,2468.5,2467.9,0.52528677]
[1728818518684,0.98559359,2468.5,2467.9,1.37611477]
[1728818519527,0.23299359,2468.5,2468.0,1.661228]
[1728818519726,0.767,2468.7,2468.0,1.661228]
[1728818519910,0.23300885,2468.6,2468.0,1.661228]
[1728818520078,0.23300885,2468.6,2468.1,0.21865148]
[1728818526426,0.767,2468.5,2468.1,0.21865148]
[1728818526746,0.23301499,2468.4,2467.8,1.661228]
[1728818526907,0.767,2468.3,2467.8,1.661228]
[1728818527106,0.23301306,2468.2,2467.8,1.661228]
[1728818527345,0.767,2468.3,2467.9,0.3035584]
[1728818527508,0.23301306,2468.2,2468.0,0.3035584]
[1728818527710,0.767,2468.3,2468.1,0.3035584]
[1728818528015,0.23301306,2468.2,2467.9,0.3035584]
[1728818528340,0.767,2468.3,2468.0,0.3035584]
[1728818528642,0.23301306,2468.2,2468.1,0.3035584]
[1728818528888,0.23301306,2468.2,2468.0,0.3035584]
[1728818529025,0.767,2468.3,2468.1,0.3035584]
[1728818529375,0.23301306,2468.2,2468.0,0.3035584]
[1728818529580,0.767,2468.3,2468.1,0.3035584]
[1728818529875,0.767,2468.3,2468.0,0.3864941]
[1728818530044,0.767,2468.3,2468.1,0.30356835]
[1728818530380,0.767,2468.3,2468.2,0.30356835]
[1728818530531,0.767,2468.3,2468.1,0.30356835]
[1728818530868,0.767,2468.3,2468.2,0.30356835]
[1728818531179,0.767,2468.3,2468.1,0.30356835]
[1728818531374,0.767,2468.3,2468.2,0.30356835]
[1728818531542,0.767,2468.3,2468.1,0.30356835]
[1728818531749,0.767,2468.3,2468.2,0.30356835]
[1728818531945,1.00001759,2468.3,2468.1,0.30356835]
[1728818532187,1.00001759,2468.3,2468.2,0.30356835]
[1728818532480,1.00001759,2468.3,2468.0,0.30356835]
[1728818532782,1.00001759,2468.3,2468.1,0.30356835]
[1728818532957,1.00001759,2468.3,2467.9,1.47491355]
[1728818532958,1.00001759,2468.3,2468.2,0.30356835]
[1728818533137,1.00001759,2468.3,2468.0,0.30367703]
[1728818533482,1.00001759,2468.3,2468.1,0.30367703]
[1728818533772,1.00001759,2468.3,2468.2,0.30367703]
[1728818533977,1.00001759,2468.3,2468.1,0.30367703]
[1728818534273,1.00001759,2468.3,2468.2,0.30367703]
[1728818534981,1.00001759,2468.3,2468.0,0.38650597]
[1728818534982,1.00001759,2468.3,2468.1,0.30367703]
[1728818535278,1.00001759,2468.3,2468.2,0.30367703]
[1728818536882,1.00001759,2468.3,2468.2,0.30380813]
[1728818540337,1.00001759,2468.3,2468.2,0.30386461]
[1728818544277,1.00001759,2468.3,2468.2,0.30390482]
[1728818544874,0.23301759,2468.3,2468.2,0.30390482]
[1728818545177,0.7875,2468.6,2468.2,0.30390482]
[1728818545381,0.7875,2468.6,2468.1,1.653928]
[1728818545382,0.23302654,2468.5,2468.3,0.30390482]
[1728818545678,0.23302654,2468.5,2468.4,0.30390482]
[1728818547548,0.23302654,2468.5,2468.1,1.653928]
[1728818547757,0.23302654,2468.5,2468.4,0.30405776]
[1728818551601,0.23302654,2468.5,2468.4,0.30419298]
[1728818558402,0.23302654,2468.5,2468.2,0.7958]
[1728818558758,0.23302654,2468.5,2468.3,0.30419862]
[1728818559097,0.23302654,2468.5,2468.4,0.30419862]
[1728818562218,0.23302654,2468.5,2468.4,0.30423252]
[1728818563712,1.08071911,2468.5,2468.4,0.30423252]
[1728818565952,1.08071911,2468.5,2468.4,0.30426147]
[1728818566246,0.23302654,2468.5,2468.4,0.30426147]
[1728818566638,1.08071911,2468.5,2468.4,0.30426147]
[1728818567791,1.08071911,2468.5,2468.4,0.30426117]
[1728818569497,1.08071911,2468.5,2468.1,0.85181026]
[1728818569879,1.08071911,2468.5,2468.4,0.30428954]
[1728818571599,1.87241911,2468.5,2468.4,0.30428954]
[1728818571746,2.35635342,2468.5,2468.4,0.30428954]
[1728818572147,1.50866085,2468.5,2468.4,0.30428954]
[1728818572384,2.35660084,2468.5,2468.4,0.30428954]
[1728818572591,2.35657146,2468.5,2468.4,0.30428954]
[1728818573181,1.50866085,2468.5,2468.4,0.30428954]
[1728818573360,1.50866085,2468.5,2468.4,0.30433545]
[1728818573550,2.35653594,2468.5,2468.4,0.30433545]
[1728818574465,1.50866085,2468.5,2468.4,0.30433545]
[1728818574666,2.35653226,2468.5,2468.4,0.30433545]
[1728818575597,2.78019971,2468.5,2468.4,0.30433545]
[1728818577160,1.02472654,2468.5,2468.4,0.30433545]
[1728818577371,1.08076985,2468.5,2468.4,0.30433545]
[1728818581002,1.08076985,2468.5,2468.4,0.30428332]
[1728818583305,1.08076985,2468.5,2468.1,0.783]
[1728818583477,1.08076985,2468.5,2468.4,0.30427445]
[1728818589401,1.98746479,2468.5,2468.0,0.85181026]
[1728818589600,0.84767538,2468.4,2468.1,0.30427462]
[1728818589924,1.08073133,2468.4,2468.2,0.30427462]
[1728818590128,1.63037538,2468.3,2467.8,0.85181026]
[1728818590335,0.7827,2468.1,2467.8,0.85181026]
[1728818590642,0.23304774,2468.0,2467.6,0.85181026]
[1728818590806,0.23304774,2468.0,2467.7,0.30429873]
[1728818591314,0.23304774,2468.0,2467.6,0.85181026]
[1728818591510,0.23304774,2468.0,2467.8,0.30418905]
[1728818591839,0.23304774,2468.0,2467.9,0.30418905]
[1728818592834,0.23304774,2468.0,2467.5,1.66631026]
[1728818592835,0.45073975,2468.0,2467.5,1.66631026]
[1728818593039,0.23304774,2468.0,2467.6,0.3041245]
[1728818593340,0.7827,2467.9,2467.7,0.3041245]
[1728818593494,0.7827,2467.9,2467.4,0.85181026]
[1728818593699,0.23285357,2467.8,2467.5,0.30403426]
[1728818593938,0.23285357,2467.8,2467.6,0.30403426]
[1728818594243,0.23285357,2467.8,2467.7,0.30403426]
[1728818595009,0.23285357,2467.8,2467.3,1.66631026]
[1728818595309,0.23285357,2467.8,2467.4,0.30395663]
[1728818595636,0.23285357,2467.8,2467.5,0.30395663]
[1728818595998,0.23285357,2467.8,2467.6,0.30395663]
[1728818596199,0.23285357,2467.8,2467.3,1.66631026]
[1728818596200,0.23285357,2467.8,2467.4,0.30381951]
[1728818596424,0.23285357,2467.8,2467.3,1.66631026]
[1728818596425,0.23285357,2467.8,2467.5,0.30381951]
[1728818596638,0.23285357,2467.8,2467.6,0.30381951]
[1728818596835,0.23285357,2467.8,2467.4,0.30381951]
[1728818597152,0.23285357,2467.8,2467.5,0.30381951]
[1728818597365,0.23285357,2467.8,2467.6,0.30381951]
[1728818597670,0.23285357,2467.8,2467.4,0.30381951]
[1728818597830,0.23285357,2467.8,2467.5,0.30381951]
[1728818598015,0.23285357,2467.8,2467.6,0.30381951]
[1728818598216,0.23285357,2467.8,2467.4,0.30381951]
[1728818598444,0.23285357,2467.8,2467.5,0.30381951]
[1728818598759,0.23285357,2467.8,2467.4,0.30381951]
[1728818598915,0.23285357,2467.8,2467.5,0.30381951]
[1728818599116,0.23285357,2467.8,2467.6,0.30381951]
[1728818599345,0.23285357,2467.8,2467.5,0.30381951]
[1728818600321,0.23285357,2467.8,2467.6,0.7713]
[1728818600746,0.8137,2468.1,2467.6,0.7713]
[1728818601229,0.23279196,2468.0,2467.6,1.07511951]
[1728818601429,0.23279196,2468.0,2467.6,0.7713]
[1728818606999,0.23279196,2468.0,2467.4,1.07488579]
[1728818607156,0.23279196,2468.0,2467.4,0.7713]
[1728818607359,0.23279196,2468.0,2467.4,1.07488579]
[1728818607590,0.23279196,2468.0,2467.4,0.7713]
[1728818607900,0.23279196,2468.0,2467.4,1.07488579]
[1728818608111,0.23279196,2468.0,2467.4,0.7713]
[1728818608288,0.23279196,2468.0,2467.4,1.07488579]
[1728818608595,0.23279196,2468.0,2467.4,0.7713]
[1728818608801,0.23279196,2468.0,2467.4,1.07488579]
[1728818609001,0.23279196,2468.0,2467.4,0.7713]
[1728818609163,0.23279196,2468.0,2467.4,1.07488579]
[1728818609365,0.23279196,2468.0,2467.4,0.7713]
[1728818609767,0.23279196,2468.0,2467.4,1.07485838]
[1728818610499,0.23279196,2468.0,2467.4,0.7713]
[1728818610666,0.23279196,2468.0,2467.4,1.07485838]
[1728818610862,0.23279196,2468.0,2467.4,0.7713]
[1728818611067,0.23279196,2468.0,2467.4,1.07485838]
[1728818611269,0.23279196,2468.0,2467.4,0.7713]
[1728818611493,0.23279196,2468.0,2467.4,1.07485838]
[1728818611672,0.23279196,2468.0,2467.4,0.7713]
[1728818611979,0.23279196,2468.0,2467.4,1.07485838]
[1728818612178,0.23279196,2468.0,2467.4,0.7713]
[1728818612480,0.23279196,2468.0,2467.4,1.07485838]
[1728818612679,0.23279196,2468.0,2467.4,0.7713]
[1728818612993,0.23279196,2468.0,2467.4,1.07485838]
[1728818613366,0.23279196,2468.0,2467.4,0.7713]
[1728818613804,0.23279196,2468.0,2467.4,1.29788168]
[1728818614012,0.23279196,2468.0,2467.4,0.99432276]
[1728818614307,0.23279196,2468.0,2467.4,1.29788168]
[1728818614508,0.23279196,2468.0,2467.2,0.85181026]
[1728818614509,0.7679,2467.9,2467.3,1.08295892]
[1728818614683,0.7679,2467.9,2467.4,0.30355892]
[1728818614888,0.23278647,2467.8,2467.4,0.30355892]
[1728818617422,0.23278647,2467.8,2467.4,0.30358254]
[1728818622667,0.23278647,2467.8,2467.5,0.7794]
[1728818622868,0.7679,2468.1,2467.5,1.08298254]
[1728818623071,0.7679,2468.1,2467.5,0.7794]
[1728818623072,0.23262368,2468.0,2467.5,0.7794]
[1728818623370,0.23262368,2468.0,2467.6,0.30358254]
[1728818625480,0.23262368,2468.0,2467.7,1.08298254]
[1728818625699,8.92557538,2468.5,2467.9,0.7794]
[1728818626007,0.23263729,2468.4,2468.0,0.30358254]
[1728818627282,0.23263729,2468.4,2468.1,0.30358254]
[1728818627489,0.23263729,2468.4,2468.0,0.30358254]
[1728818627828,0.23263729,2468.4,2468.1,0.30358254]
[1728818627991,0.23263729,2468.4,2468.0,0.30358254]
[1728818628200,0.23263729,2468.4,2468.1,0.30358254]
[1728818628397,0.23263729,2468.4,2468.0,0.30365946]
[1728818628586,0.23263729,2468.4,2468.1,0.30365946]
[1728818628786,0.23263729,2468.4,2468.0,0.30365946]
[1728818629021,0.23263729,2468.4,2468.1,0.30365946]
[1728818629238,0.23263729,2468.4,2468.0,0.30365946]
[1728818629539,0.23263729,2468.4,2468.1,0.30365946]
[1728818629739,0.23263729,2468.4,2468.0,0.30365946]
[1728818629891,0.23263729,2468.4,2468.1,0.30365946]
[1728818630094,0.23263729,2468.4,2468.0,0.30365946]
[1728818630293,0.23263729,2468.4,2468.1,0.30365946]
[1728818630595,0.23263729,2468.4,2468.0,0.30365946]
[1728818630908,0.23263729,2468.4,2468.1,0.30365946]
[1728818631106,0.23263729,2468.4,2468.0,0.30365946]
[1728818631320,0.23263729,2468.4,2468.1,0.30365946]
[1728818631528,0.23263729,2468.4,2468.0,0.30365946]
[1728818631837,0.23263729,2468.4,2468.1,0.30365946]
[1728818632036,0.23263729,2468.4,2467.9,0.7794]
[1728818632239,0.23263729,2468.4,2468.0,0.30367692]
[1728818632541,0.23263729,2468.4,2468.1,0.30367692]
[1728818632739,0.23263729,2468.4,2468.0,0.30367692]
[1728818633037,0.23263729,2468.4,2468.1,0.30367692]
[1728818633335,0.23263729,2468.4,2468.0,0.30367692]
[1728818633532,0.23263729,2468.4,2468.1,0.30367692]
[1728818633739,0.23263729,2468.4,2468.0,0.30367692]
[1728818633908,0.23263729,2468.4,2468.1,0.30367692]
[1728818634106,0.23263729,2468.4,2468.0,0.30367692]
[1728818634313,0.23263729,2468.4,2468.1,0.30367692]
[1728818634513,0.23263729,2468.4,2468.0,0.30367692]
[1728818634714,0.23263729,2468.4,2468.1,0.30367692]
[1728818634922,0.23263729,2468.4,2468.0,0.30367692]
[1728818635093,0.23263729,2468.4,2468.1,0.30367692]
[1728818635298,0.23263729,2468.4,2467.9,0.7794]
[1728818635299,0.23263729,2468.4,2468.0,0.30367692]
[1728818635638,0.23263729,2468.4,2468.1,0.30367692]
[1728818636136,0.23263729,2468.4,2468.0,0.30367692]
[1728818636311,0.23263729,2468.4,2468.1,0.30367692]
[1728818636513,0.23263729,2468.4,2468.0,0.30367692]
[1728818636825,0.23263729,2468.4,2468.1,0.30367692]
[1728818637037,0.23263729,2468.4,2468.0,0.30367692]
[1728818641659,0.7711,2468.3,2467.8,0.30367692]
[1728818641864,0.7711,2468.3,2467.7,0.30367692]
[1728818642071,0.22502016,2468.2,2467.8,0.30367692]
[1728818642234,0.22502016,2468.2,2467.6,0.30367692]
[1728818642564,0.22503706,2468.1,2467.7,0.30367692]
[1728818642734,0.22503706,2468.1,2467.6,0.30367692]
[1728818643084,0.7711,2468.0,2467.7,0.30367692]
[1728818643237,0.99613253,2468.0,2467.6,0.30367692]
[1728818643567,0.99613253,2468.0,2467.5,0.8218]
[1728818643568,0.99613253,2468.0,2467.7,0.30367692]
[1728818643721,0.7711,2467.9,2467.6,0.30367692]
[1728818643921,0.7711,2467.9,2467.4,0.85181026]
[1728818643922,0.22494744,2467.8,2467.4,0.30367692]
[1728818644126,0.7711,2467.7,2467.3,0.30367692]
[1728818644346,0.7711,2467.7,2467.4,0.30367692]
[1728818644671,0.99604648,2467.7,2467.2,0.30367692]
[1728818644893,0.99604648,2467.7,2467.3,0.30367692]
[1728818644894,0.7711,2467.6,2467.3,0.30367692]
[1728818645037,0.7711,2467.6,2467.1,0.30367692]
[1728818645242,0.22494648,2467.7,2467.0,0.30367692]
[1728818645243,0.7711,2467.4,2467.0,0.30367692]
[1728818645531,0.7711,2467.4,2466.7,2.09951539]
[1728818645532,0.22481298,2467.3,2466.7,1.67361026]
[1728818645722,0.22481298,2467.3,2466.9,0.30368955]
[1728818645922,0.22481298,2467.3,2466.8,0.30368955]
[1728818646154,0.22481298,2467.3,2466.9,0.30368955]
[1728818646461,0.22481298,2467.3,2466.8,0.30368955]
[1728818648563,0.22481298,2467.3,2466.7,1.42062212]
[1728818648856,0.22481298,2467.3,2466.8,0.22724324]
[1728818654639,0.22481298,2467.3,2466.9,0.8227]
[1728818654939,0.7793,2467.6,2466.9,0.8227]
[1728818655142,0.22450787,2467.5,2466.9,1.67451026]
[1728818655470,0.22450787,2467.5,2467.0,0.52051212]
[1728818657547,0.22450787,2467.5,2467.0,4.37232238]
[1728818658085,0.22450787,2467.5,2467.0,1.37232238]
[1728818658260,0.22450787,2467.5,2467.0,0.52051212]
[1728818658433,0.22450787,2467.5,2467.1,0.8227]
[1728818658625,0.22450787,2467.5,2467.2,0.5498171]
[1728818658824,0.7793,2467.8,2467.2,0.5498171]
[1728818659329,0.22468612,2467.7,2467.2,0.5498171]
[1728818659555,0.7793,2467.8,2467.2,0.5498171]
[1728818659949,0.22468612,2467.7,2467.2,0.5498171]
[1728818660159,0.7793,2467.8,2467.3,0.43725171]
[1728818660533,0.22468612,2467.7,2467.3,0.43725171]
[1728818660883,0.7793,2467.8,2467.3,0.43725171]
[1728818661378,0.22468612,2467.7,2467.3,0.43725171]
[1728818661874,0.7793,2467.8,2467.3,0.46240302]
[1728818662235,0.22469955,2467.7,2467.3,0.46240302]
[1728818662545,0.7793,2467.8,2467.3,0.46240302]
[1728818662751,0.22469955,2467.7,2467.3,0.46240302]
[1728818662934,0.7793,2467.8,2467.3,0.46240302]
[1728818663135,0.22469955,2467.7,2467.3,0.46240302]
[1728818663433,0.7793,2467.8,2467.3,0.46240302]
[1728818663746,0.22469955,2467.7,2467.3,0.46240302]
[1728818663958,0.7793,2467.8,2467.3,0.46240302]
[1728818664445,0.22469955,2467.7,2467.3,0.46240302]
[1728818664868,0.7793,2467.8,2467.3,0.46240302]
[1728818665166,0.22469955,2467.7,2467.3,0.46240302]
[1728818665570,0.7793,2467.8,2467.3,0.46240302]
[1728818666076,0.22469955,2467.7,2467.3,0.46240302]
[1728818666379,0.7793,2467.8,2467.3,0.46240302]
[1728818666856,0.22462585,2467.7,2467.3,0.46240302]
[1728818667189,0.7793,2467.8,2467.3,0.46240302]
[1728818667561,0.22462585,2467.7,2467.3,0.46240302]
[1728818667960,0.7793,2467.8,2467.3,0.46240302]
[1728818668289,0.22463388,2467.7,2467.3,0.46240302]
[1728818668640,0.7793,2467.8,2467.3,0.46240302]
[1728818669140,0.22463388,2467.7,2467.3,0.46240302]
[1728818669353,0.7793,2467.8,2467.3,0.43725171]
[1728818669553,0.22463388,2467.7,2467.3,0.43725171]
[1728818669756,0.7793,2467.8,2467.3,0.43725171]
[1728818670179,0.22463388,2467.7,2467.3,0.43725171]
[1728818670557,0.7793,2467.8,2467.3,0.43725171]
[1728818670773,0.22463388,2467.7,2467.3,0.43725171]
[1728818671162,0.7793,2467.8,2467.3,0.43725171]
[1728818671454,0.22464462,2467.7,2467.3,0.43725171]
[1728818671852,0.7793,2467.8,2467.3,0.43725171]
[1728818672266,0.22464462,2467.7,2467.3,0.43725171]
[1728818672541,0.7793,2467.8,2467.3,0.43725171]
[1728818672774,0.22464462,2467.7,2467.3,0.43725171]
[1728818673265,0.7793,2467.8,2467.3,0.43725171]
[1728818673675,0.22464462,2467.7,2467.3,0.43725171]
[1728818674068,0.7793,2467.8,2467.3,0.43725171]
[1728818674444,0.22464462,2467.7,2467.3,0.43725171]
[1728818674985,0.22463473,2467.6,2467.3,0.43725171]
[1728818675359,0.7793,2467.8,2467.3,0.43725171]
[1728818675561,0.7793,2467.8,2467.2,0.5498171]
[1728818675562,0.22463925,2467.7,2467.2,0.5498171]
[1728818675878,0.829,2467.6,2467.2,0.5498171]
[1728818676188,0.22462668,2467.5,2467.0,0.30317255]
[1728818678385,0.829,2467.4,2467.0,0.30317255]
[1728818678545,1.05355678,2467.4,2467.0,0.30317255]
[1728818682112,1.05355678,2467.4,2466.9,0.30317329]
[1728818682415,1.05355678,2467.4,2466.9,0.96476006]
[1728818682617,1.05355678,2467.4,2467.0,0.30317329]
[1728818683896,1.05355678,2467.4,2467.0,0.30359524]
[1728818684215,1.05355678,2467.4,2467.1,0.30359524]
[1728818684392,1.05355678,2467.4,2467.0,0.30359524]
[1728818684712,1.05355678,2467.4,2467.1,0.30359524]
[1728818684913,1.05355678,2467.4,2467.0,1.07309524]
[1728818685075,1.05355678,2467.4,2467.1,0.30359524]
[1728818685617,0.22455678,2467.4,2467.1,0.30359524]
[1728818685974,0.829,2467.6,2467.1,0.30359524]
[1728818686185,0.22446194,2467.5,2467.1,0.30359524]
[1728818687127,0.22446194,2467.5,2467.2,0.30359524]
[1728818687428,0.22446194,2467.5,2467.2,0.30372864]
[1728818687631,0.22446194,2467.5,2467.3,0.30372864]
[1728818687932,0.22446194,2467.5,2467.0,1.87995949]
[1728818687933,0.22446194,2467.5,2467.1,0.30372864]
[1728818688125,0.22446194,2467.5,2467.2,0.30372864]
[1728818688328,0.22446194,2467.5,2467.3,0.30372864]
[1728818688528,0.22446194,2467.5,2467.2,0.30372864]
[1728818688694,0.22446194,2467.5,2467.3,0.30372864]
[1728818689029,0.22446194,2467.5,2467.2,0.30372864]
[1728818689324,0.22446194,2467.5,2467.3,0.30372864]
[1728818689542,0.22446194,2467.5,2467.1,0.30372864]
[1728818689691,0.22446194,2467.5,2467.2,0.30372864]
[1728818689892,0.22446194,2467.5,2467.3,0.30372864]
[1728818690092,0.22446194,2467.5,2467.1,0.30372864]
[1728818690385,0.22446194,2467.5,2467.2,0.30372864]
[1728818690592,0.22446194,2467.5,2467.3,0.30372864]
[1728818690909,0.22446194,2467.5,2467.1,0.68580418]
[1728818691297,0.22446194,2467.5,2467.2,0.30387801]
[1728818691504,0.22446194,2467.5,2467.3,0.30387801]
[1728818691715,0.22446194,2467.5,2467.1,0.38192617]
[1728818691904,0.22446194,2467.5,2467.2,0.30388739]
[1728818692104,0.22446194,2467.5,2467.3,0.30388739]
[1728818692415,0.22446194,2467.5,2467.1,0.38192617]
[1728818692628,0.22446194,2467.5,2467.2,0.30390453]
[1728818692800,0.22446194,2467.5,2467.3,0.30390453]
[1728818693004,0.22446194,2467.5,2467.1,0.38192617]
[1728818693204,0.22446194,2467.5,2467.2,0.30390391]
[1728818693417,0.22446194,2467.5,2467.3,0.30390391]
[1728818693616,0.22446194,2467.5,2467.4,0.30390391]
[1728818693820,0.22446194,2467.5,2467.2,0.30390391]
[1728818694022,0.22446194,2467.5,2467.3,0.30390391]
[1728818694339,0.22446194,2467.5,2467.4,0.30394187]
[1728818694539,0.22446194,2467.5,2467.1,0.30394169]
[1728818694846,0.22446194,2467.5,2467.2,0.30394169]
[1728818695205,0.22446194,2467.5,2467.3,0.30394169]
[1728818695407,0.22446194,2467.5,2467.4,0.30394169]
[1728818695624,0.22446194,2467.5,2467.2,0.30394169]
[1728818695811,0.22446194,2467.5,2467.3,0.30394169]
[1728818696005,0.22446194,2467.5,2467.4,0.30394169]
[1728818698408,0.22446194,2467.5,2467.4,0.30401661]
[1728818699233,0.22446194,2467.5,2467.1,0.85181026]
[1728818699406,0.22446194,2467.5,2467.2,0.30403181]
[1728818699741,0.22446194,2467.5,2467.3,0.30403181]
[1728818699944,0.22446194,2467.5,2467.4,0.30403181]
[1728818705155,0.22446194,2467.5,2467.4,0.30405023]
[1728818707823,1.59917538,2467.8,2467.4,0.30405023]
[1728818708032,1.59917538,2467.8,2467.3,0.7526]
[1728818708033,3.08678532,2467.8,2467.5,0.30405023]
[1728818708224,3.08678532,2467.8,2467.3,0.7526]
[1728818708419,3.08678532,2467.8,2467.4,0.30408989]
[1728818708733,0.7515,2467.8,2467.5,0.30409042]
[1728818708928,0.7515,2467.8,2467.6,0.30409042]
[1728818709125,0.7515,2467.8,2467.7,0.30405736]
[1728818713007,0.7515,2467.8,2467.4,0.85181026]
[1728818713131,0.7515,2467.8,2467.4,1.14002282]
[1728818713479,0.7515,2467.8,2467.5,0.30408357]
[1728818713626,0.7515,2467.8,2467.5,0.30408363]
[1728818714043,0.7515,2467.8,2467.6,0.30408363]
[1728818714530,0.7515,2467.8,2467.7,0.30408363]
[1728818715560,0.7515,2467.8,2467.2,1.27771539]
[1728818715561,0.7515,2467.8,2467.4,0.30408363]
[1728818715727,0.7515,2467.8,2467.5,0.30408363]
[1728818715932,0.7755,2467.6,2467.3,0.30413632]
[1728818716133,0.7755,2467.6,2467.0,0.85181026]
[1728818716373,1.62317538,2467.5,2467.1,0.30414971]
[1728818716543,0.7755,2467.4,2467.2,0.30414971]
[1728818716771,0.7755,2467.4,2466.7,2.45048415]
[1728818716772,0.7755,2467.4,2466.8,0.85181026]
[1728818716957,0.7755,2467.4,2466.9,0.30417897]
[1728818717161,1.06497142,2467.4,2467.0,0.30417962]
[1728818717475,1.06497142,2467.4,2466.7,2.03681539]
[1728818717476,0.7755,2467.3,2467.1,0.30417962]
[1728818717674,0.7755,2467.2,2466.8,0.30417243]
[1728818717886,0.7755,2467.2,2466.9,0.30417243]
[1728818718194,3.84767538,2467.3,2466.5,1.27771539]
[1728818718195,0.7755,2467.1,2466.7,0.30409874]
[1728818718403,0.7755,2467.1,2466.8,0.30411063]
[1728818718574,0.7755,2467.1,2466.5,0.85181026]
[1728818718773,0.7755,2467.1,2466.6,0.30411793]
[1728818718972,1.36497142,2467.1,2466.7,0.30411793]
[1728818719174,0.55,2466.9,2466.6,0.30411793]
[1728818719376,0.7755,2466.7,2466.0,0.85181026]
[1728818719574,0.7755,2466.7,2465.8,1.70362053]
[1728818719575,1.07184958,2466.6,2466.1,0.30407672]
[1728818719776,1.07184958,2466.6,2466.2,0.30408254]
[1728818719974,0.2241742,2466.6,2465.9,1.14067283]
[1728818720180,0.2241742,2466.6,2466.0,0.30406655]
[1728818720390,0.2241742,2466.6,2466.1,0.30406655]
[1728818720599,0.2241742,2466.6,2466.0,0.30406655]
[1728818720777,0.2241742,2466.6,2466.1,0.30406655]
[1728818721099,0.2241742,2466.6,2466.0,0.30406655]
[1728818721328,0.2241742,2466.6,2465.9,0.59292912]
[1728818722159,0.2241742,2466.6,2465.9,0.28886257]
[1728818722802,0.2241742,2466.6,2465.9,0.59292912]
[1728818723099,0.2241742,2466.6,2465.9,0.28886257]
[1728818723398,0.2241742,2466.6,2465.9,0.23886257]
[1728818724814,0.2241742,2466.6,2466.0,0.7591]
[1728818728810,0.2241742,2466.6,2465.7,0.7718]
[1728818729111,0.7993,2466.5,2465.8,0.47305861]
[1728818729399,0.22393134,2466.4,2465.8,0.47305861]
[1728818729603,0.7993,2466.5,2465.8,0.47305861]
[1728818729770,0.22393134,2466.4,2465.8,0.47305861]
[1728818729967,0.7993,2466.5,2465.8,0.47305861]
[1728818730271,0.22393134,2466.4,2465.7,0.7718]
[1728818730784,0.7993,2466.5,2465.7,0.7718]
[1728818731002,0.22392147,2466.4,2465.7,0.7718]
[1728818731306,0.7993,2466.5,2465.7,0.7718]
[1728818731771,0.22392147,2466.4,2465.7,0.7718]
[1728818734411,0.22392147,2466.4,2465.7,1.24485861]
[1728818734716,0.7539,2466.3,2465.7,1.24485861]
[1728818735011,0.97779007,2466.3,2465.7,1.24485861]
[1728818735375,0.97779007,2466.3,2465.7,0.47305861]
[1728818737316,0.97779007,2466.3,2465.8,0.8053]
[1728818744588,0.22389007,2466.3,2465.8,0.8053]
[1728818744827,0.7539,2466.5,2465.8,0.8053]
[1728818745030,0.22384077,2466.4,2465.8,0.8053]
[1728818747021,8.0639,2466.7,2465.8,0.8053]
[1728818747221,0.22386862,2466.6,2465.8,0.8053]
[1728818748115,0.22386862,2466.6,2465.8,1.3553]
[1728818748313,0.22386862,2466.6,2466.0,0.8053]
[1728818748512,0.7539,2466.7,2466.0,0.8053]
[1728818748910,0.22385197,2466.6,2466.0,0.8053]
[1728818749213,0.7539,2466.7,2466.0,0.8053]
[1728818749454,0.223917,2466.6,2466.0,0.8053]
[1728818749952,0.7539,2466.7,2466.0,0.8053]
[1728818750457,0.223917,2466.6,2466.0,0.8053]
[1728818750949,0.7539,2466.7,2466.0,0.8053]
[1728818751153,0.7539,2466.7,2466.0,1.20435902]
[1728818751324,0.223917,2466.6,2466.1,0.44250701]
[1728818751520,0.818,2466.5,2466.1,0.44250701]
[1728818751721,0.818,2466.5,2465.9,0.22071103]
[1728818753819,0.818,2466.5,2465.9,0.62342312]
[1728818754963,0.22392833,2466.4,2465.9,0.62342312]
[1728818755854,0.22392833,2466.4,2465.9,0.22071103]
[1728818756058,0.8183,2466.3,2465.9,0.22071103]
[1728818757540,0.22391121,2466.2,2465.9,0.22071103]
[1728818757951,0.8183,2466.3,2465.8,0.40921203]
[1728818758453,3.0,2466.9,2465.8,0.40921203]
[1728818758454,1.04220853,2466.2,2465.8,0.40921203]
[1728818758835,0.8183,2466.2,2465.8,0.40921203]
[1728818759670,0.8183,2466.2,2465.8,1.5637356]
[1728818759895,0.8183,2466.2,2465.8,1.26102229]
[1728818760031,0.8183,2466.2,2465.9,0.58685841]
[1728818760230,0.8183,2466.2,2465.9,1.13595536]
[1728818760430,0.8183,2466.2,2466.0,0.3036707]
[1728818760840,0.8183,2466.8,2466.0,0.3036707]
[1728818761041,0.8183,2466.6,2466.0,0.3036707]
[1728818761270,0.22391138,2466.5,2466.1,0.3036707]
[1728818761471,0.22391138,2466.5,2466.2,0.3036707]
[1728818761769,0.22391138,2466.5,2466.3,0.3036707]
[1728818761968,0.22391138,2466.5,2466.4,0.3036707]
[1728818762965,0.22391138,2466.5,2466.4,0.85181026]